fUST/lending_fUST_20250609
["ID","MTS","AMOUNT","RATE_DAILY","PERIOD"]
[365111836,1749469842012,-151.0,0.000227,7]
[365111837,1749469842021,-1000.0,0.00022709,2]
[365111838,1749469842031,-479.20313739,0.00022709,2]
[365111839,1749469842043,-521.56263175,0.00022721,2]
[365111840,1749469842052,-500.0,0.00022729,4]
[365111841,1749469842062,-500.0,0.00022729,4]
[365111842,1749469842072,-511.46,0.00022729,4]
[365111843,1749469842082,-1000.0,0.00022729,2]
[365111844,1749469842091,-440.0,0.00022739,4]
[365111845,1749469842101,-440.0,0.00022739,4]
[365111846,1749469842111,-440.0,0.00022739,4]
[365111847,1749469842122,-440.0,0.00022739,4]
[365111848,1749469842132,-440.0,0.00022739,4]
[365111849,1749469842142,-440.0,0.00022739,4]
[365111850,1749469842151,-233.05673029,0.00022739,4]
[365111851,1749469842161,-440.0,0.00022739,2]
[365111852,1749469842172,-344.82288595,0.00022739,4]
[365111853,1749469842182,-322.3327829,0.00022739,4]
[365111854,1749469842191,-440.0,0.00022739,4]
[365111855,1749469842202,-440.0,0.00022739,4]
[365111856,1749469842212,-440.0,0.00022739,4]
[365111857,1749469842222,-440.0,0.00022739,4]
[365111858,1749469842232,-440.0,0.00022739,4]
[365111859,1749469842242,-440.0,0.00022739,4]
[365111860,1749469842251,-440.0,0.00022739,4]
[365111861,1749469842262,-440.0,0.00022739,4]
[365111862,1749469842272,-400.0,0.00022739,2]
[365111863,1749469842283,-1533.85,0.00022739,4]
[365111864,1749469842293,-2072.53,0.00022739,4]
[365111865,1749469842304,-440.0,0.00022739,4]
[365111866,1749469842314,-1897.31,0.00022739,4]
[365111867,1749469842324,-440.0,0.00022739,4]
[365111868,1749469842335,-526.2,0.00022739,4]
[365111869,1749469842345,-485.3231773,0.00022739,4]
[365111870,1749469842355,-809.56,0.00022739,4]
[365111871,1749469842364,-973.67,0.00022739,4]
[365111872,1749469842374,-590.62,0.00022739,4]
[365111873,1749469842383,-440.0,0.00022739,4]
[365111874,1749469842393,-440.0,0.00022739,4]
[365111875,1749469842403,-440.0,0.00022739,4]
[365111876,1749469842412,-440.0,0.00022739,4]
[365111877,1749469842422,-440.0,0.00022739,4]
[365111878,1749469842432,-792.58,0.00022739,4]
[365111880,1749469842442,-440.0,0.00022739,4]
[365111882,1749469842451,-440.0,0.00022739,4]
[365111884,1749469842461,-1100.41,0.00022739,4]
[365111885,1749469842471,-440.0,0.00022739,4]
[365111887,1749469842481,-1025.28,0.00022739,4]
[365111889,1749469842490,-440.0,0.00022739,4]
[365111891,1749469842500,-1602.85,0.00022739,4]
[365111893,1749469842509,-440.0,0.00022739,4]
[365111895,1749469842519,-440.0,0.00022739,4]
[365111897,1749469842529,-250.09816201,0.00022739,4]
[365111900,1749469842539,-1143.25,0.00022739,4]
[365111902,1749469842550,-440.0,0.00022739,4]
[365111905,1749469842559,-440.0,0.00022739,4]
[365111908,1749469842569,-440.0,0.00022739,4]
[365111911,1749469842578,-440.0,0.00022739,4]
[365111914,1749469842588,-4759.74,0.00022739,4]
[365111916,1749469842598,-440.0,0.00022739,4]
[365111917,1749469842608,-1082.38,0.00022739,4]
[365111918,1749469842617,-440.0,0.00022739,4]
[365111919,1749469842627,-440.0,0.00022739,4]
[365111920,1749469842637,-440.0,0.00022739,4]
[365111922,1749469842646,-440.0,0.00022739,4]
[365111923,1749469842655,-2354.07,0.00022739,4]
[365111928,1749469842747,-605.61,0.00022739,4]
[365111929,1749469842759,-440.0,0.00022739,4]
[365111930,1749469842769,-440.0,0.00022739,4]
[365111931,1749469842779,-1904.99,0.00022739,4]
[365111932,1749469842789,-538.54,0.00022739,4]
[365111933,1749469842799,-1043.53,0.00022739,4]
[365111934,1749469842809,-2805.0,0.00022739,4]
[365111935,1749469842819,-440.0,0.00022739,4]
[365111936,1749469842829,-440.0,0.00022739,4]
[365111937,1749469842839,-1465.02,0.00022739,4]
[365111938,1749469842849,-484.41698253,0.00022831,8]
[365111939,1749469842859,-165.56987677,0.00022844,2]
[365111940,1749469842869,-484.41698253,0.00022969,8]
[365111941,1749469842879,-212.923775,0.00023013,7]
[365111942,1749469842888,-440.0,0.00023013,4]
[365111943,1749469842898,-440.0,0.00023013,4]
[365111944,1749469842908,-440.0,0.00023013,4]
[365111945,1749469842917,-440.0,0.00023013,4]
[365111946,1749469842927,-440.0,0.00023013,4]
[365111947,1749469842936,-440.0,0.00023013,2]
[365111948,1749469842946,-440.0,0.00023013,4]
[365111949,1749469842956,-440.0,0.00023013,4]
[365111950,1749469842966,-440.0,0.00023013,4]
[365111952,1749469842975,-440.0,0.00023013,4]
[365111954,1749469842985,-440.0,0.00023013,4]
[365111955,1749469842995,-440.0,0.00023013,4]
[365111956,1749469843004,-440.0,0.00023013,4]
[365111957,1749469843013,-370.0,0.00023013,4]
[365111958,1749469843023,-400.0,0.00023013,2]
[365111960,1749469843033,-1533.85,0.00023013,4]
[365111961,1749469843046,-2072.53,0.00023013,4]
[365111962,1749469843056,-440.0,0.00023013,4]
[365111963,1749469843066,-1897.31,0.00023013,4]
[365111964,1749469843078,-440.0,0.00023013,4]
[365111965,1749469843087,-526.2,0.00023013,4]
[365111966,1749469843098,-809.56,0.00023013,4]
[365111967,1749469843108,-973.67,0.00023013,4]
[365111968,1749469843119,-590.62,0.00023013,4]
[365111969,1749469843132,-440.0,0.00023013,4]
[365111970,1749469843142,-440.0,0.00023013,4]
[365111971,1749469843151,-440.0,0.00023013,4]
[365111972,1749469843161,-440.0,0.00023013,4]
[365111973,1749469843171,-440.0,0.00023013,4]
[365111974,1749469843181,-792.58,0.00023013,4]
[365111975,1749469843190,-440.0,0.00023013,4]
[365111976,1749469843200,-440.0,0.00023013,4]
[365111977,1749469843210,-1100.41,0.00023013,4]
[365111978,1749469843220,-440.0,0.00023013,4]
[365111979,1749469843230,-1025.28,0.00023013,4]
[365111980,1749469843239,-277.19311173,0.00023013,4]
[365111981,1749469843249,-1602.85,0.00023013,4]
[365111982,1749469843259,-440.0,0.00023013,4]
[365111983,1749469843269,-561.94793586,0.00023013,4]
[365111984,1749469843278,-1143.25,0.00023013,4]
[365111985,1749469843287,-440.0,0.00023013,4]
[365111986,1749469843298,-440.0,0.00023013,4]
[365111987,1749469843309,-440.0,0.00023013,4]
[365111988,1749469843318,-440.0,0.00023013,4]
[365111989,1749469843328,-4759.74,0.00023013,4]
[365111990,1749469843338,-440.0,0.00023013,4]
[365111991,1749469843348,-1082.38,0.00023013,4]
[365111992,1749469843358,-440.0,0.00023013,4]
[365111993,1749469843368,-440.0,0.00023013,4]
[365111994,1749469843377,-440.0,0.00023013,4]
[365111995,1749469843387,-440.0,0.00023013,4]
[365111996,1749469843397,-2354.07,0.00023013,4]
[365111997,1749469843407,-605.61,0.00023013,4]
[365111998,1749469843416,-440.0,0.00023013,4]
[365111999,1749469843426,-440.0,0.00023013,4]
[365112000,1749469843436,-1904.99,0.00023013,4]
[365112001,1749469843445,-538.54,0.00023013,4]
[365112002,1749469843456,-1043.53,0.00023013,4]
[365112003,1749469843466,-2805.0,0.00023013,4]
[365112004,1749469843475,-440.0,0.00023013,4]
[365112005,1749469843485,-440.0,0.00023013,4]
[365112006,1749469843495,-1465.02,0.00023013,4]
[365112007,1749469843505,-484.41698253,0.00023107,8]
[365112008,1749469843515,-963.0,0.00023109,2]
[365112009,1749469843525,-2160.0,0.00023109,2]
[365112010,1749469843535,-688.61,0.00023109,2]
[365112011,1749469843544,-150.125,0.00023109,2]
[365112012,1749469843554,-150.341,0.00023109,2]
[365112013,1749469843564,-405.0,0.00023109,2]
[365112014,1749469843575,-405.0,0.00023109,2]
[365112015,1749469843585,-3063.79582189,0.00023157,2]
[365112016,1749469843594,-473.97605399,0.000232,2]
[365112017,1749469843604,-500.0,0.000232,2]
[365112018,1749469843614,-484.41698253,0.00023245,8]
[365112019,1749469843623,-183.35058372,0.00023257,2]
[365112020,1749469843633,-165.56987677,0.00023258,2]
[365112021,1749469843643,-1500.0,0.00023277,2]
[365112022,1749469843652,-160.0,0.00023286,2]
[365112023,1749469843662,-387.18986344,0.00023287,4]
[365112024,1749469843672,-256.93,0.00023287,4]
[365112025,1749469843682,-440.0,0.00023287,4]
[365112026,1749469843691,-440.0,0.00023287,4]
[365112027,1749469843701,-440.0,0.00023287,4]
[365112028,1749469843711,-440.0,0.00023287,2]
[365112029,1749469843720,-440.0,0.00023287,4]
[365112030,1749469843730,-440.0,0.00023287,4]
[365112031,1749469843740,-440.0,0.00023287,4]
[365112032,1749469843751,-440.0,0.00023287,4]
[365112033,1749469843761,-440.0,0.00023287,4]
[365112034,1749469843771,-440.0,0.00023287,4]
[365112035,1749469843781,-440.0,0.00023287,4]
[365112036,1749469843792,-400.0,0.00023287,2]
[365112037,1749469843802,-1533.85,0.00023287,4]
[365112038,1749469843811,-2072.53,0.00023287,4]
[365112039,1749469843822,-440.0,0.00023287,4]
[365112040,1749469843831,-1897.31,0.00023287,4]
[365112041,1749469843841,-440.0,0.00023287,4]
[365112042,1749469843851,-526.2,0.00023287,4]
[365112043,1749469843861,-809.56,0.00023287,4]
[365112044,1749469843871,-973.67,0.00023287,4]
[365112045,1749469843881,-590.62,0.00023287,4]
[365112046,1749469843891,-440.0,0.00023287,4]
[365112047,1749469843901,-440.0,0.00023287,4]
[365112048,1749469843911,-440.0,0.00023287,4]
[365112049,1749469843921,-440.0,0.00023287,4]
[365112050,1749469843930,-440.0,0.00023287,4]
[365112051,1749469843939,-792.58,0.00023287,4]
[365112052,1749469843948,-440.0,0.00023287,4]
[365112053,1749469843958,-440.0,0.00023287,4]
[365112054,1749469843968,-1100.41,0.00023287,4]
[365112055,1749469843978,-440.0,0.00023287,4]
[365112056,1749469843987,-1025.28,0.00023287,4]
[365112057,1749469843997,-1602.85,0.00023287,4]
[365112058,1749469844007,-440.0,0.00023287,4]
[365112059,1749469844016,-1143.25,0.00023287,4]
[365112060,1749469844026,-440.0,0.00023287,4]
[365112061,1749469844037,-440.0,0.00023287,4]
[365112062,1749469844052,-440.0,0.00023287,4]
[365112063,1749469844062,-440.0,0.00023287,4]
[365112064,1749469844071,-4759.74,0.00023287,4]
[365112065,1749469844082,-440.0,0.00023287,4]
[365112066,1749469844092,-1082.38,0.00023287,4]
[365112067,1749469844101,-440.0,0.00023287,4]
[365112068,1749469844112,-440.0,0.00023287,4]
[365112069,1749469844123,-440.0,0.00023287,4]
[365112070,1749469844133,-440.0,0.00023287,4]
[365112071,1749469844142,-2354.07,0.00023287,4]
[365112072,1749469844152,-605.61,0.00023287,4]
[365112073,1749469844161,-440.0,0.00023287,4]
[365112074,1749469844171,-440.0,0.00023287,4]
[365112075,1749469844180,-1904.99,0.00023287,4]
[365112076,1749469844190,-538.54,0.00023287,4]
[365112077,1749469844199,-1043.53,0.00023287,4]
[365112078,1749469844209,-2805.0,0.00023287,4]
[365112079,1749469844219,-440.0,0.00023287,4]
[365112080,1749469844228,-440.0,0.00023287,4]
[365112081,1749469844243,-1465.02,0.00023287,4]
[365112082,1749469844258,-484.41698253,0.00023383,9]
[365112083,1749469844268,-206.0,0.0002343,2]
[365112084,1749469844278,-306.0,0.00023479,2]
[365112085,1749469844287,-862.380143,0.0002352,3]
[365112086,1749469844297,-484.41698253,0.00023521,9]
[365112087,1749469844306,-500.0,0.00023539,2]
[365112088,1749469844316,-512.03976152,0.00023539,2]
[365112089,1749469844325,-600.0,0.00023539,2]
[365112090,1749469844334,-500.0,0.00023539,2]
[365112091,1749469844344,-500.0,0.00023539,2]
[365112092,1749469844354,-500.0,0.00023539,2]
[365112093,1749469844363,-504.28435098,0.00023539,2]
[365112094,1749469844373,-500.0,0.00023539,2]
[365112095,1749469844382,-260.07446142,0.00023539,2]
[365112096,1749469844391,-500.0,0.00023539,2]
[365112097,1749469844401,-440.0,0.00023561,4]
[365112098,1749469844412,-440.0,0.00023561,4]
[365112099,1749469844421,-440.0,0.00023561,4]
[365112100,1749469844430,-440.0,0.00023561,2]
[365112101,1749469844440,-440.0,0.00023561,4]
[365112102,1749469844449,-440.0,0.00023561,4]
[365112103,1749469844460,-440.0,0.00023561,4]
[365112104,1749469844470,-440.0,0.00023561,4]
[365112105,1749469844479,-440.0,0.00023561,4]
[365112106,1749469844488,-440.0,0.00023561,4]
[365112107,1749469844497,-400.0,0.00023561,2]
[365112108,1749469844507,-1533.85,0.00023561,4]
[365112109,1749469844517,-2072.53,0.00023561,4]
[365112110,1749469844526,-440.0,0.00023561,4]
[365112111,1749469844535,-1897.31,0.00023561,4]
[365112112,1749469844545,-440.0,0.00023561,4]
[365112113,1749469844555,-526.2,0.00023561,4]
[365112114,1749469844564,-809.56,0.00023561,4]
[365112115,1749469844574,-973.67,0.00023561,4]
[365112116,1749469844583,-590.62,0.00023561,4]
[365112117,1749469844593,-440.0,0.00023561,4]
[365112118,1749469844602,-440.0,0.00023561,4]
[365112119,1749469844611,-440.0,0.00023561,4]
[365112120,1749469844620,-270.0,0.00023561,4]
[365112121,1749469844630,-440.0,0.00023561,4]
[365112122,1749469844639,-792.58,0.00023561,4]
[365112123,1749469844649,-440.0,0.00023561,4]
[365112124,1749469844659,-440.0,0.00023561,4]
[365112125,1749469844669,-1100.41,0.00023561,4]
[365112126,1749469844679,-440.0,0.00023561,4]
[365112127,1749469844689,-1025.28,0.00023561,4]
[365112128,1749469844698,-1602.85,0.00023561,4]
[365112129,1749469844709,-440.0,0.00023561,4]
[365112130,1749469844719,-1143.25,0.00023561,4]
[365112131,1749469844729,-189.64832882,0.00023561,4]
[365112132,1749469844739,-440.0,0.00023561,4]
[365112133,1749469844748,-440.0,0.00023561,4]
[365112134,1749469844757,-440.0,0.00023561,4]
[365112135,1749469844767,-4759.74,0.00023561,4]
[365112136,1749469844777,-440.0,0.00023561,4]
[365112137,1749469844867,-1082.38,0.00023561,4]
[365112138,1749469844877,-440.0,0.00023561,4]
[365112139,1749469844887,-440.0,0.00023561,4]
[365112140,1749469844896,-440.0,0.00023561,4]
[365112141,1749469844905,-440.0,0.00023561,4]
[365112142,1749469844915,-2354.07,0.00023561,4]
[365112143,1749469844925,-605.61,0.00023561,4]
[365112144,1749469844934,-440.0,0.00023561,4]
[365112145,1749469844943,-440.0,0.00023561,4]
[365112146,1749469844953,-1904.99,0.00023561,4]
[365112147,1749469844962,-538.54,0.00023561,4]
[365112148,1749469844971,-1043.53,0.00023561,4]
[365112149,1749469844981,-1405.82901269,0.00023561,4]
[365112150,1749469845275,-500.0,0.00021916,2]
[365112151,1749469845285,-401.27644943,0.00021917,4]
[365112152,1749469845294,-551.87,0.00022464,3]
[365112153,1749469845304,-150.497,0.00023109,2]
[365112154,1749469845313,-1399.17098731,0.00023561,4]
[365112155,1749469845322,-440.0,0.00023561,4]
[365112156,1749469845332,-168.95456576,0.00023561,4]
[365112157,1749469845344,-271.04543424,0.00023561,4]
[365112158,1749469845354,-1465.02,0.00023561,4]
[365112159,1749469845363,-304.63792749,0.00023563,2]
[365112160,1749469845373,-500.0,0.00023563,2]
[365112161,1749469845382,-152.72517312,0.00023563,2]
[365112163,1749469845391,-501.09580603,0.00023563,2]
[365112164,1749469845401,-620.16235642,0.0002365,2]
[365112165,1749469845411,-484.41698253,0.00023659,9]
[365112166,1749469845420,-165.56987677,0.00023671,2]
[365112167,1749469845429,-206.0,0.0002372,2]
[365112168,1749469845438,-215.0738,0.00023723,2]
[365112169,1749469845448,-500.0,0.00023748,2]
[365112170,1749469845457,-484.41698253,0.00023797,9]
[365112171,1749469845467,-2000.0,0.00023825,2]
[365112172,1749469845477,-440.0,0.00023835,4]
[365112173,1749469845487,-440.0,0.00023835,4]
[365112174,1749469845496,-440.0,0.00023835,4]
[365112175,1749469845505,-493.2,0.00023835,4]
[365112176,1749469845515,-440.0,0.00023835,4]
[365112177,1749469845525,-440.0,0.00023835,4]
[365112178,1749469845534,-440.0,0.00023835,4]
[365112179,1749469845544,-440.0,0.00023835,4]
[365112181,1749469845553,-440.0,0.00023835,4]
[365112183,1749469845563,-536.47,0.00023835,2]
[365112184,1749469845573,-1533.85,0.00023835,4]
[365112185,1749469845582,-2072.53,0.00023835,4]
[365112186,1749469845592,-440.0,0.00023835,4]
[365112187,1749469845601,-1897.31,0.00023835,4]
[365112188,1749469845611,-440.0,0.00023835,4]
[365112189,1749469845620,-526.2,0.00023835,4]
[365112190,1749469845630,-809.56,0.00023835,4]
[365112191,1749469845640,-973.67,0.00023835,4]
[365112192,1749469845649,-590.62,0.00023835,4]
[365112194,1749469845658,-440.0,0.00023835,4]
[365112196,1749469845668,-440.0,0.00023835,4]
[365112197,1749469845677,-440.0,0.00023835,4]
[365112198,1749469845687,-440.0,0.00023835,4]
[365112199,1749469845696,-792.58,0.00023835,4]
[365112200,1749469845706,-440.0,0.00023835,4]
[365112202,1749469845716,-440.0,0.00023835,4]
[365112203,1749469845726,-1100.41,0.00023835,4]
[365112204,1749469845735,-432.55,0.00023835,4]
[365112205,1749469845745,-1025.28,0.00023835,4]
[365112206,1749469845755,-1602.85,0.00023835,4]
[365112207,1749469845765,-440.0,0.00023835,4]
[365112208,1749469845774,-1143.25,0.00023835,4]
[365112209,1749469845783,-440.0,0.00023835,4]
[365112210,1749469845793,-440.0,0.00023835,4]
[365112211,1749469845803,-440.0,0.00023835,4]
[365112212,1749469845815,-4759.74,0.00023835,4]
[365112213,1749469845824,-440.0,0.00023835,4]
[365112214,1749469845834,-1082.38,0.00023835,4]
[365112215,1749469845845,-440.0,0.00023835,4]
[365112216,1749469845856,-440.0,0.00023835,4]
[365112217,1749469845865,-440.0,0.00023835,4]
[365112218,1749469845876,-440.0,0.00023835,4]
[365112219,1749469845885,-2354.07,0.00023835,4]
[365112220,1749469845895,-605.61,0.00023835,4]
[365112221,1749469845905,-440.0,0.00023835,4]
[365112222,1749469845915,-440.0,0.00023835,4]
[365112223,1749469845925,-1904.99,0.00023835,4]
[365112224,1749469845935,-538.54,0.00023835,4]
[365112225,1749469845945,-1043.53,0.00023835,4]
[365112226,1749469845955,-2805.0,0.00023835,4]
[365112227,1749469845964,-440.0,0.00023835,4]
[365112228,1749469845975,-440.0,0.00023835,4]
[365112229,1749469845985,-1465.02,0.00023835,4]
[365112230,1749469845995,-1323.23,0.000239,7]
[365112231,1749469846005,-26299.32092883,0.000239,2]
[365112232,1749469846017,-2155.6,0.000239,2]
[365112233,1749469846028,-4578.29582834,0.000239,2]
[365112234,1749469846041,-4988.03555379,0.000239,2]
[365112235,1749469846151,-440.0,0.00021917,4]
[365112236,1749469846160,-440.0,0.00021917,4]
[365112237,1749469846170,-7647.63347402,0.000239,2]
[365112238,1749469846262,-34.66742473,0.000239,2]
[365112239,1749469846274,-14820.27679029,0.000239,2]
[365112240,1749469846284,-484.41698253,0.00023934,10]
[365112241,1749469846293,-501.88713235,0.00023973,2]
[365112242,1749469846303,-502.25479299,0.00023973,2]
[365112243,1749469846313,-500.0,0.00023973,2]
[365112244,1749469846322,-500.0,0.00023973,2]
[365112245,1749469846332,-500.0,0.00023973,2]
[365112246,1749469846341,-500.0,0.00023973,2]
[365112247,1749469846351,-500.0,0.00023973,2]
[365112248,1749469846360,-500.0,0.00023973,2]
[365112249,1749469846369,-308.1561612,0.00023973,2]
[365112250,1749469846379,-500.0,0.00023973,2]
[365112251,1749469846388,-500.0,0.00023973,2]
[365112252,1749469846398,-500.0,0.00023973,2]
[365112253,1749469846408,-500.0,0.00023973,2]
[365112254,1749469846417,-501.62665453,0.00023973,2]
[365112255,1749469846427,-163.239598,0.00023973,2]
[365112256,1749469846436,-500.0,0.00023973,2]
[365112257,1749469846446,-500.0,0.00023973,2]
[365112258,1749469846455,-502.15774599,0.00023973,2]
[365112259,1749469846464,-305.73856418,0.00023973,2]
[365112260,1749469846474,-500.0,0.00023973,2]
[365112261,1749469846484,-521.94568965,0.00023973,2]
[365112262,1749469846494,-500.0,0.00023973,2]
[365112263,1749469846503,-1028.91,0.00023987,4]
[365112264,1749469846513,-404.27086398,0.00023987,4]
[365112265,1749469846523,-188229.07185812,0.00024,2]
[365112266,1749469846535,-107785.99999994,0.00024,2]
[365112267,1749469924308,2000.0,0.00020931,120]
[365112269,1749470046629,1000.0,0.00024658,120]
[365112270,1749470051608,1354.000818,0.00024658,120]
[365112271,1749470224556,1000.0,0.0002459,120]
[365112272,1749470231025,1000.0,0.0002459,120]
[365112273,1749470240764,500.0,0.0002459,120]
[365112274,1749470266554,999.0,0.0002459,120]
[365112275,1749470366670,250.0,0.00024658,120]
[365112276,1749470454491,255.2,0.00024658,120]
[365112277,1749470494400,12724.07646143,0.00024606,120]
[365112279,1749470701097,163.239598,0.00013699,2]
[365112282,1749470877539,2000.0,0.000244,120]
[365112283,1749470910041,3000.0,0.000244,120]
[365112287,1749470940849,238.7883436,0.00020414,120]
[365112331,1749471032056,-217.35671,0.00020414,2]
[365112333,1749471032065,-418.51,0.00020665,2]
[365112335,1749471032075,-189.2353884,0.00020702,2]
[365112339,1749471032108,-110.7646116,0.00020702,2]
[365112342,1749471032119,-354.48028725,0.00020702,2]
[365112352,1749471032214,-845.51971275,0.00020702,2]
[365112354,1749471032225,-11204.0,0.00020703,2]
[365112356,1749471032235,-198.241379,0.00020867,2]
[365112358,1749471032244,-300.0,0.00020903,2]
[365112360,1749471032253,-24900.0,0.00020905,2]
[365112362,1749471032263,-160.0,0.00021815,2]
[365112364,1749471032273,-229.64266968,0.00021815,2]
[365112366,1749471032282,-363.74015141,0.00021817,2]
[365112368,1749471032292,-1021.26527397,0.00021817,2]
[365112370,1749471032302,-160.0,0.00021877,2]
[365112372,1749471032312,-160.0,0.00021877,2]
[365112374,1749471032321,-816.41551731,0.000219,6]
[365112376,1749471032331,-479.0,0.00021904,10]
[365112378,1749471032341,-222.57499057,0.00021913,2]
[365112380,1749471032351,-500.0,0.00021913,2]
[365112382,1749471032361,-500.0,0.00021913,2]
[365112385,1749471032370,-500.0,0.00021913,2]
[365112387,1749471032380,-254.20970362,0.00021913,2]
[365112389,1749471032390,-234.18945702,0.00021913,2]
[365112391,1749471032399,-329.28245154,0.00021913,2]
[365112393,1749471032409,-500.0,0.00021913,2]
[365112395,1749471032424,-386.03405117,0.00021913,2]
[365112397,1749471032443,-500.0,0.00021913,2]
[365112398,1749471032455,-500.0,0.00021913,2]
[365112401,1749471032465,-500.0,0.00021913,2]
[365112403,1749471032475,-500.0,0.00021913,2]
[365112405,1749471032485,-500.0,0.00021913,2]
[365112407,1749471032495,-500.0,0.00021913,2]
[365112409,1749471032505,-500.0,0.00021913,2]
[365112411,1749471032515,-500.0,0.00021913,2]
[365112412,1749471032525,-500.0,0.00021913,2]
[365112415,1749471032536,-500.0,0.00021913,2]
[365112417,1749471032546,-500.0,0.00021913,2]
[365112419,1749471032557,-367.30065208,0.00021913,2]
[365112421,1749471032566,-500.0,0.00021913,2]
[365112423,1749471032576,-500.0,0.00021913,2]
[365112425,1749471032587,-500.0,0.00021913,2]
[365112427,1749471032596,-500.0,0.00021913,2]
[365112429,1749471032606,-500.0,0.00021913,2]
[365112430,1749471032616,-500.0,0.00021913,2]
[365112432,1749471032625,-500.0,0.00021913,2]
[365112434,1749471032635,-500.0,0.00021913,2]
[365112436,1749471032644,-500.0,0.00021913,2]
[365112439,1749471032654,-500.0,0.00021913,2]
[365112441,1749471032663,-500.0,0.00021913,2]
[365112443,1749471032672,-500.0,0.00021913,2]
[365112445,1749471032682,-500.0,0.00021913,2]
[365112447,1749471032691,-500.0,0.00021913,2]
[365112449,1749471032701,-500.0,0.00021913,2]
[365112451,1749471032711,-500.0,0.00021913,2]
[365112453,1749471032721,-500.0,0.00021913,2]
[365112455,1749471032730,-500.0,0.00021913,2]
[365112457,1749471032740,-443.27852503,0.00021913,2]
[365112459,1749471032750,-500.0,0.00021913,2]
[365112461,1749471032761,-500.0,0.00021913,2]
[365112463,1749471032770,-500.0,0.00021913,2]
[365112465,1749471032780,-500.0,0.00021913,2]
[365112467,1749471032790,-500.0,0.00021913,2]
[365112469,1749471032799,-194.8013509,0.00021913,2]
[365112471,1749471032809,-500.0,0.00021913,2]
[365112473,1749471032819,-500.0,0.00021913,2]
[365112475,1749471032828,-500.0,0.00021913,2]
[365112477,1749471032838,-500.0,0.00021913,2]
[365112479,1749471032848,-160.0,0.00021914,2]
[365112481,1749471032857,-213.08899333,0.00021914,2]
[365112483,1749471032866,-160.0,0.00021914,2]
[365112485,1749471032876,-834.7738823,0.00021914,2]
[365112487,1749471032886,-160.0,0.00021914,2]
[365112489,1749471032895,-842.5625,0.00021914,2]
[365112491,1749471032905,-161.273,0.00021915,2]
[365112493,1749471032915,-255.4406849,0.00021916,2]
[365112495,1749471032926,-500.0,0.00021916,2]
[365112497,1749471032936,-160.0,0.00021916,2]
[365112499,1749471032945,-257.35692552,0.00021917,4]
[365112501,1749471032955,-440.0,0.00021917,4]
[365112503,1749471032965,-430.0,0.00021917,4]
[365112505,1749471032975,-440.0,0.00021917,4]
[365112507,1749471032985,-465.90000317,0.00021917,4]
[365112509,1749471032994,-440.0,0.00021917,4]
[365112511,1749471033004,-440.0,0.00021917,4]
[365112513,1749471033014,-440.0,0.00021917,4]
[365112515,1749471033025,-380.0,0.00021917,4]
[365112517,1749471033035,-252.98540738,0.00021917,4]
[365112519,1749471033045,-440.0,0.00021917,4]
[365112521,1749471033055,-440.0,0.00021917,4]